[Event "36th National Sub Junior 2019"]
[Site "Tiruchengode"]
[Date "2019.07.10"]
[Round "2.5"]
[White "Dhyana Patel"]
[Black "Tejaswi R"]
[Result "1-0"]
[ECO "B52"]
[WhiteElo "1900"]
[BlackElo "1426"]
[Annotator "NA"]
[PlyCount "71"]
[EventDate "2019.07.09"]
[EventCountry "IND"]
[SourceTitle "playchess.com"]
[Source "ChessBase"]
[SourceQuality "1"]
[TimeControl "5400+30"]

1. e4 {[%emt 0:00:00]} c5 {[%emt 0:00:13]} 2. Nf3 {[%emt 0:00:00]} d6 {[%emt 0:00:08]} 3. Bb5+ {[%emt 0:00:15]} Bd7 {[%emt 0:00:17]} 4. Bxd7+ {[%emt 0:00:37]} Nxd7 {[%emt 0:00:09]} 5. d4 {[%emt 0:01:28]} cxd4 {[%emt 0:00:50]} 6. Qxd4 {[%emt 0:00:16]} Ngf6 {[%emt 0:03:39]} 7. O-O {[%emt 0:02:27]} g6 {[%emt 0:01:37]} 8. Nc3 {[%emt 0:02:21]} Bg7 {[%emt 0:01:01]} 9. Bg5 {[%emt 0:00:30]} O-O {[%emt 0:01:18]} 10. Qd2 {[%emt 0:02:23]} Qb6 {[%emt 0:04:47]} 11. Rab1 {[%emt 0:06:46]} Nc5 {[%emt 0:05:50]} 12. Rfe1 {[%emt 0:00:59]} Rfd8 {[%emt 0:02:53]} 13. Nd5 {[%emt 0:02:53]} Nxd5 {[%emt 0:08:08]} 14. exd5 {[%emt 0:00:19]} f6 {[%emt 0:02:29]} 15. Bh6 {[%emt 0:05:22]} Qc7 {[%emt 0:03:29]} 16. Bxg7 {[%emt 0:01:57]} Kxg7 {[%emt 0:00:11]} 17. b4 {[%emt 0:00:20]} Na4 {[%emt 0:03:12]} 18. Nd4 {[%emt 0:00:06]} Qd7 {[%emt 0:02:13]} 19. Ne6+ {[%emt 0:00:22]} Kh8 {[%emt 0:02:05]} 20. Qh6 {[%emt 0:04:20]} Rg8 {[%emt 0:08:05]} 21. Rb3 {[%emt 0:00:39]} Qxe6 {[%emt 0:08:24]} 22. Rxe6 {[%emt 0:00:15]} Rg7 {[%emt 0:00:16]} 23. Qe3 {[%emt 0:00:20]} Nb6 {[%emt 0:01:05]} 24. Rxe7 {[%emt 0:00:06]} Nxd5 {[%emt 0:01:10]} 25. Re8+ {[%emt 0:00:06]} Rg8 {[%emt 0:03:30]} 26. Rxg8+ {[%emt 0:00:03]} Rxg8 {[%emt 0:00:10]} 27. Qe6 {[%emt 0:00:04]} Nc7 {[%emt 0:01:49]} 28. Qxf6+ {[%emt 0:00:11]} Rg7 {[%emt 0:00:19]} 29. Rc3 {[%emt 0:00:24]} Ne8 {[%emt 0:05:08]} 30. Rc8 {[%emt 0:00:17]} h6 {[%emt 0:01:54]} 31. Rxe8+ {[%emt 0:00:03]} Kh7 {[%emt 0:00:09]} 32. Qf8 {[%emt 0:00:04]} g5 {[%emt 0:00:52]} 33. Qf5+ {[%emt 0:00:07]} Rg6 {[%emt 0:03:27]} 34. Re7+ {[%emt 0:00:03]} Kh8 {[%emt 0:02:46]} 35. Qf8+ {[%emt 0:00:03]} Rg8 {[%emt 0:01:01]} 36. Qxh6# {[%emt 0:00:02]} 1-0

[Event "36th National Sub Junior 2019"]
[Site "Tiruchengode"]
[Date "2019.07.10"]
[Round "3.1"]
[White "Shrija, K M"]
[Black "Divya Deshmukh"]
[Result "0-1"]
[ECO "B52"]
[WhiteElo "1535"]
[BlackElo "2373"]
[Annotator "NA"]
[PlyCount "90"]
[EventDate "2019.07.09"]
[EventCountry "IND"]
[SourceTitle "playchess.com"]
[Source "ChessBase"]
[SourceQuality "1"]
[TimeControl "5400+30"]

1. e4 {[%emt 0:00:01]} c5 {[%emt 0:00:00]} 2. Nf3 {[%emt 0:00:12]} d6 {[%emt 0:00:00]} 3. Bb5+ {[%emt 0:00:16]} Bd7 {[%emt 0:00:00]} 4. Bxd7+ {[%emt 0:00:11]} Qxd7 {[%emt 0:00:00]} 5. c4 {[%emt 0:00:12]} g6 {[%emt 0:00:54]} 6. d4 {[%emt 0:00:08]} cxd4 {[%emt 0:00:03]} 7. Nxd4 {[%emt 0:00:07]} Bg7 {[%emt 0:00:05]} 8. Nc3 {[%emt 0:00:25]} Nc6 {[%emt 0:00:04]} 9. Be3 {[%emt 0:00:14]} Nf6 {[%emt 0:00:04]} 10. f3 {[%emt 0:00:08]} O-O {[%emt 0:00:06]} 11. O-O {[%emt 0:00:08]} Rfd8 {[%emt 0:01:52]} 12. Qd3 {[%emt 0:01:51]} Rac8 {[%emt 0:02:31]} 13. b3 {[%emt 0:01:14]} e6 {[%emt 0:04:23]} 14. Rfd1 {[%emt 0:06:02]} d5 {[%emt 0:07:58]} 15. Nxc6 {[%emt 0:10:19]} bxc6 {[%emt 0:02:20]} 16. e5 {[%emt 0:02:11]} dxc4 {[%emt 0:07:24]} 17. Qxc4 {[%emt 0:00:59]} Nd5 {[%emt 0:00:09]} 18. Bg5 {[%emt 0:14:41]} Bxe5 {[%emt 0:04:03]} 19. Bxd8 {[%emt 0:11:26]} Qxd8 {[%emt 0:00:07]} 20. Rac1 {[%emt 0:01:35]} Qb6+ {[%emt 0:03:58]} 21. Kh1 {[%emt 0:00:07]} Bxc3 {[%emt 0:03:32]} 22. Rxc3 {[%emt 0:00:11]} Nxc3 {[%emt 0:00:23]} 23. Qxc3 {[%emt 0:00:07]} Rd8 {[%emt 0:01:11]} 24. Rc1 {[%emt 0:01:53]} Qf2 {[%emt 0:06:18]} 25. Qxc6 {[%emt 0:03:21]} Qxa2 {[%emt 0:06:05]} 26. Qc7 {[%emt 0:03:11]} Qd2 {[%emt 0:00:37]} 27. h3 {[%emt 0:00:59]} a5 {[%emt 0:15:27]} 28. Ra1 {[%emt 0:02:06]} Rd5 {[%emt 0:00:20]} 29. Rc1 {[%emt 0:02:27]} h5 {[%emt 0:03:49]} 30. Qb8+ {[%emt 0:00:58]} Rd8 {[%emt 0:01:10]} 31. Qc7 {[%emt 0:01:30]} h4 {[%emt 0:01:11]} 32. Qc3 {[%emt 0:01:27]} Qg5 {[%emt 0:00:09]} 33. Qc4 {[%emt 0:07:47]} Rd5 {[%emt 0:07:04]} 34. Ra1 {[%emt 0:02:08]} Qd8 {[%emt 0:00:26]} 35. Ra4 {[%emt 0:04:03]} Rd1+ {[%emt 0:05:24]} 36. Kh2 {[%emt 0:00:13]} Qb8+ {[%emt 0:00:32]} 37. Qf4 {[%emt 0:02:06]} Qb6 {[%emt 0:00:51]} 38. Qxh4 {[%emt 0:00:43]} Qg1+ {[%emt 0:00:04]} 39. Kg3 {[%emt 0:00:11]} Rd2 {[%emt 0:00:03]} 40. Qf6 {[%emt 0:04:33]} Rxg2+ {[%emt 0:00:19]} 41. Kf4 {[%emt 0:00:21]} Qc1+ {[%emt 0:00:07]} 42. Ke4 {[%emt 0:01:13]} Re2+ {[%emt 0:00:17]} 43. Kd4 {[%emt 0:00:14]} Qe3+ {[%emt 0:00:48]} 44. Kc4 {[%emt 0:00:13]} Rc2+ {[%emt 0:00:03]} 45. Kb5 {[%emt 0:00:08]} Qxb3+ {[%emt 0:00:04]} 0-1

[Event "36th National Sub Junior 2019"]
[Site "Tiruchengode"]
[Date "2019.07.10"]
[Round "3.2"]
[White "Jain Nityata"]
[Black "Tanvi, Vasudev Hadkonkar"]
[Result "1-0"]
[ECO "B51"]
[WhiteElo "2135"]
[BlackElo "1502"]
[Annotator "NA"]
[PlyCount "95"]
[EventDate "2019.07.09"]
[EventCountry "IND"]
[SourceTitle "playchess.com"]
[Source "ChessBase"]
[SourceQuality "1"]
[TimeControl "5400+30"]

1. e4 {[%emt 0:00:00]} c5 {[%emt 0:00:00]} 2. Nf3 {[%emt 0:00:00]} d6 {[%emt 0:00:00]} 3. Bb5+ {[%emt 0:00:00]} Nd7 {[%emt 0:00:40]} 4. O-O {[%emt 0:00:00]} a6 {[%emt 0:00:35]} 5. Bd3 {[%emt 0:00:20]} g6 {[%emt 0:00:53]} 6. c3 {[%emt 0:01:57]} Bg7 {[%emt 0:02:16]} 7. Bc2 {[%emt 0:01:49]} e5 {[%emt 0:01:16]} 8. d4 {[%emt 0:01:23]} Ne7 {[%emt 0:00:33]} 9. Be3 {[%emt 0:03:20]} O-O {[%emt 0:04:01]} 10. dxc5 {[%emt 0:01:01]} dxc5 {[%emt 0:03:55]} 11. Qd6 {[%emt 0:01:46]} Nc6 {[%emt 0:10:52]} 12. Bxc5 {[%emt 0:12:51]} Nxc5 {[%emt 0:03:07]} 13. Qxc5 {[%emt 0:00:25]} f5 {[%emt 0:01:56]} 14. Bb3+ {[%emt 0:05:50]} Kh8 {[%emt 0:00:08]} 15. Nbd2 {[%emt 0:01:38]} g5 {[%emt 0:10:08]} 16. Nc4 {[%emt 0:09:00]} Qf6 {[%emt 0:05:03]} 17. Nb6 {[%emt 0:07:08]} Rb8 {[%emt 0:21:38]} 18. Nd5 {[%emt 0:04:18]} Qh6 {[%emt 0:04:14]} 19. Nd2 {[%emt 0:14:02]} fxe4 {[%emt 0:16:39]} 20. Nxe4 {[%emt 0:01:10]} Rf4 {[%emt 0:00:43]} 21. Nxf4 {[%emt 0:02:21]} gxf4 {[%emt 0:00:53]} 22. Qd6 {[%emt 0:03:38]} Bf5 {[%emt 0:01:11]} 23. Qxh6 {[%emt 0:00:09]} Bxh6 {[%emt 0:00:04]} 24. Nd6 {[%emt 0:00:07]} Bd3 {[%emt 0:01:17]} 25. Rfe1 {[%emt 0:00:34]} Kg7 {[%emt 0:00:41]} 26. Nf7 {[%emt 0:02:58]} e4 {[%emt 0:01:48]} 27. Nxh6 {[%emt 0:00:39]} Kxh6 {[%emt 0:00:06]} 28. Bd5 {[%emt 0:00:06]} Re8 {[%emt 0:02:44]} 29. Bxc6 {[%emt 0:02:03]} bxc6 {[%emt 0:00:08]} 30. Rad1 {[%emt 0:00:04]} Rb8 {[%emt 0:01:08]} 31. b3 {[%emt 0:00:34]} Kg5 {[%emt 0:00:39]} 32. f3 {[%emt 0:00:16]} Kf5 {[%emt 0:00:17]} 33. fxe4+ {[%emt 0:00:08]} Bxe4 {[%emt 0:00:07]} 34. Rd4 {[%emt 0:00:15]} Re8 {[%emt 0:01:30]} 35. b4 {[%emt 0:00:36]} Re6 {[%emt 0:00:34]} 36. c4 {[%emt 0:00:21]} Re5 {[%emt 0:01:25]} 37. a4 {[%emt 0:01:00]} Bc2 {[%emt 0:00:15]} 38. Rxe5+ {[%emt 0:01:03]} Kxe5 {[%emt 0:00:05]} 39. Rd2 {[%emt 0:00:16]} Bb3 {[%emt 0:00:21]} 40. b5 {[%emt 0:00:45]} Bxc4 {[%emt 0:00:53]} 41. b6 {[%emt 0:00:20]} Bd5 {[%emt 0:00:27]} 42. b7 {[%emt 0:00:18]} c5 {[%emt 0:00:04]} 43. b8=Q+ {[%emt 0:00:15]} Ke4 {[%emt 0:00:07]} 44. Qe8+ {[%emt 0:00:20]} Kf5 {[%emt 0:00:08]} 45. Rxd5+ {[%emt 0:00:05]} Kf6 {[%emt 0:00:04]} 46. Qe5+ {[%emt 0:00:23]} Kf7 {[%emt 0:00:05]} 47. Rd7+ {[%emt 0:00:04]} Kf8 {[%emt 0:00:05]} 48. Qh8# {[%emt 0:00:06]} 1-0

[Event "36th National Sub Junior 2019"]
[Site "Tiruchengode"]
[Date "2019.07.10"]
[Round "3.3"]
[White "Marium, Fatima"]
[Black "Mrudul Dehankar"]
[Result "0-1"]
[ECO "E17"]
[WhiteElo "1516"]
[BlackElo "2074"]
[Annotator "NA"]
[PlyCount "92"]
[EventDate "2019.07.09"]
[EventCountry "IND"]
[SourceTitle "playchess.com"]
[Source "ChessBase"]
[SourceQuality "1"]
[TimeControl "5400+30"]

1. d4 {[%emt 0:00:00]} Nf6 {[%emt 0:00:00]} 2. Nf3 {[%emt 0:00:00]} e6 {[%emt 0:00:00]} 3. g3 {[%emt 0:00:00]} b6 {[%emt 0:00:11]} 4. Bg2 {[%emt 0:00:00]} Bb7 {[%emt 0:00:13]} 5. O-O {[%emt 0:00:13]} Be7 {[%emt 0:00:21]} 6. b3 {[%emt 0:00:19]} O-O {[%emt 0:00:56]} 7. Nbd2 {[%emt 0:00:11]} c5 {[%emt 0:00:42]} 8. Bb2 {[%emt 0:01:00]} d6 {[%emt 0:02:57]} 9. c4 {[%emt 0:00:16]} Nbd7 {[%emt 0:02:01]} 10. Rc1 {[%emt 0:00:36]} Qc7 {[%emt 0:01:11]} 11. Qc2 {[%emt 0:00:52]} Rac8 {[%emt 0:03:24]} 12. Qb1 {[%emt 0:00:52]} Qb8 {[%emt 0:01:50]} 13. Rfd1 {[%emt 0:00:30]} Qa8 {[%emt 0:00:48]} 14. Qa1 {[%emt 0:07:30]} Rfe8 {[%emt 0:09:57]} 15. Nf1 {[%emt 0:02:28]} a6 {[%emt 0:07:26]} 16. Ne3 {[%emt 0:02:15]} cxd4 {[%emt 0:06:21]} 17. Bxd4 {[%emt 0:02:10]} Rc7 {[%emt 0:02:21]} 18. Bb2 {[%emt 0:08:33]} Rec8 {[%emt 0:01:38]} 19. Ne1 {[%emt 0:05:07]} Bf8 {[%emt 0:09:58]} 20. Bxb7 {[%emt 0:03:30]} Qxb7 {[%emt 0:00:09]} 21. Nf3 {[%emt 0:00:17]} Ne4 {[%emt 0:01:19]} 22. Nd2 {[%emt 0:01:03]} Ng5 {[%emt 0:04:16]} 23. f3 {[%emt 0:01:14]} f5 {[%emt 0:04:54]} 24. Ndf1 {[%emt 0:04:32]} f4 {[%emt 0:04:16]} 25. Ng4 {[%emt 0:01:28]} b5 {[%emt 0:06:23]} 26. h4 {[%emt 0:02:39]} Nf7 {[%emt 0:01:04]} 27. cxb5 {[%emt 0:01:40]} Qxb5 {[%emt 0:00:35]} 28. Kf2 {[%emt 0:00:30]} Rc2 {[%emt 0:02:48]} 29. Re1 {[%emt 0:00:37]} h5 {[%emt 0:00:33]} 30. Ngh2 {[%emt 0:00:19]} Nde5 {[%emt 0:01:49]} 31. Rxc2 {[%emt 0:05:51]} Rxc2 {[%emt 0:00:25]} 32. Bxe5 {[%emt 0:01:21]} Nxe5 {[%emt 0:00:11]} 33. Kg1 {[%emt 0:00:57]} Qc5+ {[%emt 0:03:38]} 34. e3 {[%emt 0:08:59]} fxe3 {[%emt 0:01:16]} 35. Rxe3 {[%emt 0:01:18]} Rc1 {[%emt 0:00:32]} 36. Qb2 {[%emt 0:02:42]} Qxe3+ {[%emt 0:00:11]} 37. Kg2 {[%emt 0:00:02]} Qc5 {[%emt 0:00:12]} 38. Qe2 {[%emt 0:01:17]} Rc2 {[%emt 0:00:45]} 39. Nd2 {[%emt 0:00:06]} g6 {[%emt 0:00:22]} 40. Nhf1 {[%emt 0:00:11]} Bh6 {[%emt 0:00:11]} 41. f4 {[%emt 0:00:17]} Qd5+ {[%emt 0:00:09]} 42. Kg1 {[%emt 0:00:27]} Rxa2 {[%emt 0:00:46]} 43. fxe5 {[%emt 0:00:16]} Bxd2 {[%emt 0:00:08]} 44. exd6 {[%emt 0:00:39]} Qxd6 {[%emt 0:01:29]} 45. Nxd2 {[%emt 0:00:47]} Rxd2 {[%emt 0:00:08]} 46. Qf3 {[%emt 0:00:10]} Qc5+ {[%emt 0:00:06]} 0-1

[Event "36th National Sub Junior 2019"]
[Site "Tiruchengode"]
[Date "2019.07.10"]
[Round "3.4"]
[White "Jyothsna L"]
[Black "Nayanikaa, Muralidharan"]
[Result "1-0"]
[ECO "E12"]
[WhiteElo "1939"]
[BlackElo "1475"]
[Annotator "NA"]
[PlyCount "131"]
[EventDate "2019.07.09"]
[EventCountry "IND"]
[SourceTitle "playchess.com"]
[Source "ChessBase"]
[SourceQuality "1"]
[TimeControl "5400+30"]

1. d4 {[%emt 0:00:56]} Nf6 {[%emt 0:00:59]} 2. Nf3 {[%emt 0:00:10]} e6 {[%emt 0:00:15]} 3. c4 {[%emt 0:00:02]} b6 {[%emt 0:00:13]} 4. Nc3 {[%emt 0:00:05]} Bb7 {[%emt 1:30:33]} 5. Bg5 {[%emt 0:00:41]} Be7 {[%emt 0:00:00]} 6. Qc2 {[%emt 0:01:39]} h6 {[%emt 0:00:00]} 7. Bh4 {[%emt 0:02:58]} c5 {[%emt 0:00:00]} 8. Rd1 {[%emt 0:12:06]} Nc6 {[%emt 0:00:00]} 9. e3 {[%emt 0:11:31]} O-O {[%emt 0:00:00]} 10. Be2 {[%emt 0:08:45]} a6 {[%emt 0:00:00]} 11. O-O {[%emt 0:04:43]} d6 {[%emt 0:00:00]} 12. a3 {[%emt 0:04:30]} cxd4 {[%emt 0:00:00]} 13. Nxd4 {[%emt 0:04:20]} Rc8 {[%emt 0:00:00]} 14. Nxc6 {[%emt 0:13:26]} Bxc6 {[%emt 0:00:00]} 15. e4 {[%emt 0:14:21]} Qc7 {[%emt 0:00:00]} 16. Bg3 {[%emt 0:03:29]} Rfd8 {[%emt 0:00:00]} 17. Rd4 {[%emt 0:03:08]} Qb7 {[%emt 0:00:00]} 18. Bf3 {[%emt 0:01:27]} b5 {[%emt 0:00:00]} 19. cxb5 {[%emt 0:00:21]} axb5 {[%emt 0:00:00]} 20. Qe2 {[%emt 0:04:46]} Ne8 {[%emt 0:00:00]} 21. Rb4 {[%emt 0:03:06]} Nc7 {[%emt 0:00:00]} 22. Rd4 {[%emt 0:02:17]} Ne8 {[%emt 0:00:00]} 23. Rfd1 {[%emt 0:00:47]} Bf6 {[%emt 0:00:00]} 24. Rb4 {[%emt 0:00:04]} Bxc3 {[%emt 0:00:00]} 25. bxc3 {[%emt 0:00:01]} Qa8 {[%emt 0:00:00]} 26. Qb2 {[%emt 0:00:53]} e5 {[%emt 0:00:00]} 27. Bg4 {[%emt 0:01:24]} Rb8 {[%emt 0:00:00]} 28. f3 {[%emt 0:00:16]} Nc7 {[%emt 0:00:00]} 29. Qa2 {[%emt 0:01:08]} Na6 {[%emt 0:00:00]} 30. Rb2 {[%emt 0:00:09]} Bd7 {[%emt 0:02:35]} 31. Bxd7 {[%emt 0:00:24]} Rxd7 {[%emt 0:00:17]} 32. Bxe5 {[%emt 0:00:48]} Qc6 {[%emt 0:00:41]} 33. Bd4 {[%emt 0:00:17]} Ra8 {[%emt 0:00:58]} 34. Qb3 {[%emt 0:00:37]} Rb7 {[%emt 0:00:44]} 35. Ra2 {[%emt 0:01:16]} Nc5 {[%emt 0:01:10]} 36. Qc2 {[%emt 0:00:17]} Na4 {[%emt 0:01:02]} 37. Rc1 {[%emt 0:00:20]} Nb6 {[%emt 0:01:06]} 38. Qf2 {[%emt 0:00:11]} Nc4 {[%emt 0:00:25]} 39. Qg3 {[%emt 0:00:13]} g6 {[%emt 0:00:24]} 40. Qh4 {[%emt 0:00:40]} Kh7 {[%emt 0:00:38]} 41. Qf6 {[%emt 0:01:58]} Rg8 {[%emt 0:00:12]} 42. Rd1 {[%emt 0:00:00]} Qe8 {[%emt 0:01:29]} 43. Qf4 {[%emt 0:00:00]} Re7 {[%emt 0:00:21]} 44. Qh4 {[%emt 0:00:34]} g5 {[%emt 0:00:30]} 45. Qg4 {[%emt 0:00:24]} d5 {[%emt 0:01:01]} 46. Qf5+ {[%emt 0:00:12]} Rg6 {[%emt 0:00:11]} 47. Qxd5 {[%emt 0:00:12]} g4 {[%emt 0:00:14]} 48. Rf1 {[%emt 0:00:46]} Rg5 {[%emt 0:01:34]} 49. e5 {[%emt 0:00:37]} gxf3 {[%emt 0:05:09]} 50. Qxf3 {[%emt 0:00:23]} Nxe5 {[%emt 0:00:35]} 51. Qe4+ {[%emt 0:00:57]} Ng6 {[%emt 0:00:36]} 52. Qd3 {[%emt 0:00:14]} Re1 {[%emt 0:01:01]} 53. Raf2 {[%emt 0:00:13]} Kg8 {[%emt 0:00:42]} 54. Qh3 {[%emt 0:01:09]} Rxf1+ {[%emt 0:00:48]} 55. Kxf1 {[%emt 0:00:36]} Qe4 {[%emt 0:00:34]} 56. Qc8+ {[%emt 0:00:23]} Nf8 {[%emt 0:00:07]} 57. Kg1 {[%emt 0:00:13]} Qb1+ {[%emt 0:00:48]} 58. Rf1 {[%emt 0:00:03]} Qg6 {[%emt 0:00:22]} 59. Qa8 {[%emt 0:00:35]} h5 {[%emt 0:00:11]} 60. h3 {[%emt 0:00:54]} Rg3 {[%emt 0:00:34]} 61. Bc5 {[%emt 0:00:51]} Qg7 {[%emt 0:00:10]} 62. Bd4 {[%emt 0:00:28]} Qg6 {[%emt 0:00:24]} 63. Re1 {[%emt 0:00:32]} f6 {[%emt 0:01:25]} 64. Bc5 {[%emt 0:00:21]} Qg7 {[%emt 0:00:29]} 65. Bxf8 {[%emt 0:00:23]} Qxf8 {[%emt 0:00:17]} 66. Re8 {[%emt 0:00:02]} 1-0

[Event "36th National Sub Junior 2019"]
[Site "Tiruchengode"]
[Date "2019.07.10"]
[Round "3.5"]
[White "Koli, Isha"]
[Black "Dhyana Patel"]
[Result "1-0"]
[ECO "B35"]
[WhiteElo "1486"]
[BlackElo "1900"]
[Annotator "NA"]
[PlyCount "59"]
[EventDate "2019.07.09"]
[EventCountry "IND"]
[SourceTitle "playchess.com"]
[Source "ChessBase"]
[SourceQuality "1"]
[TimeControl "5400+30"]

1. e4 {[%emt 0:00:00]} c5 {[%emt 0:00:00]} 2. Nf3 {[%emt 0:00:00]} Nc6 {[%emt 0:00:14]} 3. d4 {[%emt 0:00:00]} cxd4 {[%emt 0:00:07]} 4. Nxd4 {[%emt 0:00:04]} g6 {[%emt 0:00:17]} 5. Nc3 {[%emt 0:00:11]} Bg7 {[%emt 0:00:15]} 6. Be3 {[%emt 0:01:30]} Nf6 {[%emt 0:00:11]} 7. Bc4 {[%emt 0:00:21]} O-O {[%emt 0:00:18]} 8. O-O {[%emt 0:01:06]} Nxe4 {[%emt 0:07:16]} 9. Nxe4 {[%emt 0:00:54]} d5 {[%emt 0:00:05]} 10. Nxc6 {[%emt 0:01:27]} bxc6 {[%emt 0:00:10]} 11. Bd3 {[%emt 0:00:13]} dxe4 {[%emt 0:01:15]} 12. Bxe4 {[%emt 0:00:10]} Qa5 {[%emt 0:00:31]} 13. c3 {[%emt 0:06:23]} Rb8 {[%emt 0:00:04]} 14. Qc2 {[%emt 0:00:26]} c5 {[%emt 0:03:48]} 15. Rfd1 {[%emt 0:02:29]} Be6 {[%emt 0:00:22]} 16. Bd5 {[%emt 0:07:04]} Bg4 {[%emt 0:02:30]} 17. f3 {[%emt 0:04:23]} Bf5 {[%emt 0:00:05]} 18. Qf2 {[%emt 0:00:57]} Qb5 {[%emt 0:07:54]} 19. Rd2 {[%emt 0:01:38]} c4 {[%emt 0:02:26]} 20. Bxa7 {[%emt 0:07:14]} Rbd8 {[%emt 0:03:00]} 21. Qc5 {[%emt 0:00:38]} Qxc5+ {[%emt 0:02:15]} 22. Bxc5 {[%emt 0:00:09]} Rd7 {[%emt 0:17:02]} 23. Be3 {[%emt 0:01:43]} Rc8 {[%emt 0:03:59]} 24. Rad1 {[%emt 0:01:34]} Rd6 {[%emt 0:06:07]} 25. Bf4 {[%emt 0:01:37]} e5 {[%emt 0:02:00]} 26. Be3 {[%emt 0:01:25]} Kf8 {[%emt 0:01:50]} 27. a4 {[%emt 0:06:31]} Ke7 {[%emt 0:02:41]} 28. a5 {[%emt 0:00:11]} Bd7 {[%emt 0:05:11]} 29. a6 {[%emt 0:04:33]} Rxa6 {[%emt 0:01:53]} 30. Bb7 {[%emt 0:00:09]} 1-0

[Event "36th National Sub Junior 2019"]
[Site "Tiruchengode"]
[Date "2019.07.11"]
[Round "4.1"]
[White "Divya Deshmukh"]
[Black "Bristy Mukherjee"]
[Result "1-0"]
[ECO "B06"]
[WhiteElo "2373"]
[BlackElo "1862"]
[Annotator "RC"]
[PlyCount "89"]
[EventDate "2019.07.09"]
[EventCountry "IND"]
[TimeControl "5400+30"]

1. e4 {[%emt 0:00:00]} g6 {[%emt 0:00:00]} 2. d4 {[%emt 0:00:00]} Bg7 {[%emt 0:00:00]} 3. Nc3 {[%emt 0:01:06]} d6 {[%emt 0:00:06]} 4. Bg5 {[%emt 0:00:52]} h6 {[%emt 0:08:11]} 5. Be3 {[%emt 0:02:00]} Nd7 {[%emt 0:04:25]} 6. f4 {[%emt 0:03:09]} a6 {[%emt 0:08:00]} 7. a4 {[%emt 0:04:18]} b6 {[%emt 0:01:01]} 8. Nf3 {[%emt 0:09:15]} Bb7 {[%emt 0:02:09]} 9. Bd3 {[%emt 0:03:50]} e5 {[%emt 0:05:48]} 10. O-O {[%emt 0:03:49]} Ne7 {[%emt 0:10:34]} 11. Kh1 {[%emt 0:05:58]} O-O {[%emt 0:06:44]} 12. Qe2 {[%emt 0:13:38]} c5 {[%emt 0:06:53]} 13. dxe5 {[%emt 0:06:26]} dxe5 {[%emt 0:01:48]} 14. f5 {[%emt 0:02:59]} Qc7 {[%emt 0:08:56]} 15. Nd2 {[%emt 0:03:17]} Nf6 {[%emt 0:05:24]} 16. Nc4 {[%emt 0:03:20]} Rad8 {[%emt 0:06:48]} 17. Rad1 {[%emt 0:02:29]} gxf5 {[%emt 0:03:09]} 18. Nd2 {[%emt 0:20:09]} f4 {[%emt 0:04:50]} 19. Bg1 {[%emt 0:00:22]} Qc8 {[%emt 0:00:26]} 20. Nc4 {[%emt 0:01:15]} Qc7 {[%emt 0:00:44]} 21. b4 {[%emt 0:01:35]} Nd7 {[%emt 0:03:01]} 22. Rb1 {[%emt 0:00:25]} Rb8 {[%emt 0:02:07]} 23. Rfd1 {[%emt 0:08:11]} Rfd8 {[%emt 0:01:45]} 24. Bf2 {[%emt 0:00:59]} Nf8 {[%emt 0:03:46]} 25. bxc5 {[%emt 0:01:18]} bxc5 {[%emt 0:00:02]} 26. Nd2 {[%emt 0:00:11]} Rd6 {[%emt 0:01:34]} 27. Bc4 {[%emt 0:01:09]} Ne6 {[%emt 0:00:38]} 28. Bxe6 {[%emt 0:00:08]} Rxe6 {[%emt 0:01:40]} 29. Nb3 {[%emt 0:00:20]} Rc6 {[%emt 0:03:04]} 30. Nd5 {[%emt 0:00:51]} Nxd5 {[%emt 0:00:13]} 31. exd5 {[%emt 0:00:01]} Rd6 {[%emt 0:01:11]} 32. c4 {[%emt 0:00:07]} Bc8 {[%emt 0:00:23]} 33. Nxc5 {[%emt 0:01:03]} Rxb1 {[%emt 0:00:23]} 34. Rxb1 {[%emt 0:00:01]} Bf8 {[%emt 0:00:12]} 35. Qxe5 {[%emt 0:01:58]} Qd8 {[%emt 0:01:02]} 36. Ne4 {[%emt 0:00:57]} Rg6 {[%emt 0:00:29]} 37. Qxf4 {[%emt 0:00:02]} f5 {[%emt 0:00:17]} 38. Nd2 {[%emt 0:00:51]} Bd6 {[%emt 0:00:21]} 39. Qf3 {[%emt 0:00:05]} f4 {[%emt 0:00:25]} 40. c5 {[%emt 0:00:16]} Be5 {[%emt 0:00:36]} 41. d6 {[%emt 0:00:08]} Bf5 {[%emt 0:00:53]} 42. Qd5+ {[%emt 0:00:06]} Re6 {[%emt 0:00:26]} 43. Re1 {[%emt 0:00:16]} Qe8 {[%emt 0:00:27]} 44. d7 {[%emt 0:00:11]} Qd8 {[%emt 0:00:08]} 45. Rxe5 {[%emt 0:00:04]} 1-0

[Event "36th National Sub Junior 2019"]
[Site "Tiruchengode"]
[Date "2019.07.11"]
[Round "4.2"]
[White "Bhagyashree Patil"]
[Black "Jain Nityata"]
[Result "1/2-1/2"]
[ECO "B13"]
[WhiteElo "1703"]
[BlackElo "2135"]
[Annotator "NA"]
[PlyCount "87"]
[EventDate "2019.07.09"]
[EventCountry "IND"]
[SourceTitle "playchess.com"]
[Source "ChessBase"]
[SourceQuality "1"]
[TimeControl "5400+30"]

1. e4 {[%emt 0:00:00]} c6 {[%emt 0:00:00]} 2. d4 {[%emt 0:00:00]} d5 {[%emt 0:00:00]} 3. exd5 {[%emt 0:00:18]} cxd5 {[%emt 0:00:13]} 4. Bd3 {[%emt 0:00:04]} Nc6 {[%emt 0:00:30]} 5. Nf3 {[%emt 0:02:21]} Bg4 {[%emt 0:01:05]} 6. c3 {[%emt 0:00:31]} Nf6 {[%emt 0:00:17]} 7. Bf4 {[%emt 0:07:01]} e6 {[%emt 0:02:42]} 8. h3 {[%emt 0:01:27]} Bh5 {[%emt 0:00:36]} 9. Nbd2 {[%emt 0:00:12]} Bd6 {[%emt 0:01:57]} 10. Bxd6 {[%emt 0:02:29]} Qxd6 {[%emt 0:00:19]} 11. O-O {[%emt 0:00:18]} O-O {[%emt 0:03:03]} 12. Qb3 {[%emt 0:05:44]} Bg6 {[%emt 0:07:23]} 13. Bxg6 {[%emt 0:06:14]} hxg6 {[%emt 0:00:39]} 14. a4 {[%emt 0:00:09]} Rab8 {[%emt 0:06:16]} 15. Rfc1 {[%emt 0:02:26]} Rfc8 {[%emt 0:01:36]} 16. Ne1 $11 {[%emt 0:04:10]} Na5 {[%emt 0:11:13]} 17. Qa2 {[%emt 0:04:51]} Nc4 {[%emt 0:11:38]} 18. Ndf3 {[%emt 0:06:41]} Ne4 {[%emt 0:03:35]} 19. Rc2 {[%emt 0:02:45]} Rc7 {[%emt 0:08:37]} 20. Nd3 {[%emt 0:02:42]} Rbc8 {[%emt 0:03:02]} 21. Re2 {[%emt 0:09:01]} a5 {[%emt 0:02:45]} 22. Nfe5 {[%emt 0:03:10]} Nxe5 {[%emt 0:03:04]} 23. Nxe5 {[%emt 0:00:06]} Nf6 {[%emt 0:04:00]} 24. Qb3 {[%emt 0:01:41]} Nd7 {[%emt 0:04:03]} 25. Qb5 {[%emt 0:03:56]} b6 {[%emt 0:02:56]} 26. Rae1 {[%emt 0:04:51]} Nxe5 {[%emt 0:00:33]} 27. Rxe5 {[%emt 0:00:06]} Rc4 {[%emt 0:00:31]} 28. R5e2 {[%emt 0:02:11]} Qc6 {[%emt 0:01:28]} 29. Qxc6 {[%emt 0:00:42]} R8xc6 {[%emt 0:00:49]} 30. Ra1 {[%emt 0:00:06]} Rc7 {[%emt 0:01:06]} 31. Kf1 {[%emt 0:00:16]} Rb7 {[%emt 0:00:50]} 32. Ke1 {[%emt 0:00:16]} b5 {[%emt 0:01:22]} 33. axb5 {[%emt 0:00:12]} Rxb5 {[%emt 0:00:05]} 34. Kd1 {[%emt 0:01:09]} Kf8 {[%emt 0:00:23]} 35. Kc2 {[%emt 0:01:57]} Ke7 {[%emt 0:03:06]} 36. Ree1 {[%emt 0:00:18]} Rc6 {[%emt 0:01:27]} 37. Ra2 {[%emt 0:03:43]} Rcb6 {[%emt 0:00:07]} 38. h4 {[%emt 0:01:36]} Kd6 {[%emt 0:01:17]} 39. g3 {[%emt 0:00:48]} Rb8 {[%emt 0:06:55]} 40. f4 {[%emt 0:01:50]} Ke7 {[%emt 0:03:19]} 41. Re3 {[%emt 0:03:19]} Kf6 {[%emt 0:00:24]} 42. Re5 {[%emt 0:00:40]} Rh8 {[%emt 0:01:11]} 43. Ra3 {[%emt 0:00:57]} Rhb8 {[%emt 0:00:34]} 44. Ra2 {[%emt 0:00:14]} 1/2-1/2